[Event "1st Magistral Barbera del Valles 2020"]
[Site "Barbera del Valles"]
[Date "2020.11.21"]
[Round "2.2"]
[White "Munoz, Miguel"]
[Black "Peralta, Fernando"]
[Result "1/2-1/2"]
[ECO "C07"]
[WhiteElo "2442"]
[BlackElo "2586"]
[Annotator "RC"]
[PlyCount "53"]
[EventDate "2020.11.20"]
[EventType "tourn"]
[EventCountry "ESP"]
[SourceTitle "playchess.com"]
[Source "ChessBase"]
[SourceQuality "1"]
[TimeControl "5400+30"]

1. e4 {[%emt 0:07:43]} e6 {[%emt 0:00:00]} 2. d4 {[%emt 0:00:12]} d5 {[%emt 0:00:00]} 3. Nd2 {[%emt 0:00:08]} c5 {[%emt 0:00:00]} 4. Ngf3 {[%emt 0:00:07]} cxd4 {[%emt 0:00:10]} 5. Nxd4 {[%emt 0:00:08]} Nc6 {[%emt 0:00:23]} 6. Nxc6 {[%emt 0:00:09]} bxc6 {[%emt 0:00:04]} 7. Bd3 {[%emt 0:00:07]} Nf6 {[%emt 0:02:25]} 8. Qe2 {[%emt 0:00:09]} Be7 {[%emt 0:01:09]} 9. O-O {[%emt 0:00:22]} O-O {[%emt 0:01:09]} 10. c4 {[%emt 0:00:09]} a5 {[%emt 0:04:10]} 11. b3 {[%emt 0:02:29]} a4 {[%emt 0:01:00]} 12. Rb1 {[%emt 0:00:13]} axb3 {[%emt 0:05:22]} 13. axb3 {[%emt 0:01:46]} Bb7 {[%emt 0:02:06]} 14. e5 {[%emt 0:01:16]} Nd7 {[%emt 0:00:49]} 15. Nf3 {[%emt 0:00:09]} c5 {[%emt 0:05:22]} 16. Re1 {[%emt 0:00:33]} d4 {[%emt 0:09:39]} 17. Be4 {[%emt 0:01:54]} Rb8 {[%emt 0:05:36]} 18. Qd3 {[%emt 0:02:45]} Bxe4 {[%emt 0:02:31]} 19. Rxe4 {[%emt 0:00:10]} Qc7 {[%emt 0:03:28]} 20. Bg5 {[%emt 0:03:45]} Rfe8 {[%emt 0:05:19]} 21. Re2 {[%emt 0:22:31]} Nf8 {[%emt 0:08:57]} 22. Qe4 {[%emt 0:09:53]} Bxg5 {[%emt 0:01:59]} 23. Nxg5 {[%emt 0:00:08]} h6 {[%emt 0:00:05]} 24. Nf3 {[%emt 0:00:08]} Rb6 {[%emt 0:02:44]} 25. Ne1 {[%emt 0:02:06]} Reb8 {[%emt 0:03:28]} 26. Reb2 {[%emt 0:00:36]} Nd7 {[%emt 0:08:22]} 27. Nd3 {[%emt 0:01:39]} 1/2-1/2